fUST/lending_fUST_20250818
["ID","MTS","AMOUNT","RATE_DAILY","PERIOD"]
[380069897,1755528651260,-480.0,0.00021369,2]
[380069898,1755528651269,-1495.35,0.00021369,2]
[380069899,1755528651278,-480.0,0.00021369,2]
[380069900,1755528651288,-480.0,0.00021369,2]
[380069901,1755528651297,-333.086648,0.00021369,2]
[380069902,1755528651306,-333.086648,0.00021369,2]
[380069903,1755528651316,-333.086648,0.00021369,2]
[380069904,1755528651325,-333.086656,0.00021369,2]
[380069905,1755528651334,-480.0,0.00021369,2]
[380069906,1755528651343,-555.45,0.00021369,2]
[380069907,1755528651352,-353.961423,0.00021369,2]
[380069908,1755528651361,-353.961423,0.00021369,2]
[380069909,1755528651370,-353.961423,0.00021369,2]
[380069910,1755528651379,-353.961429,0.00021369,2]
[380069911,1755528651390,-775.36,0.00021369,2]
[380069912,1755528651399,-158.60606,0.00021369,2]
[380069913,1755528651409,-480.0,0.00021369,2]
[380069914,1755528651420,-483.04,0.00021369,2]
[380069915,1755528651437,-480.0,0.00021369,2]
[380069916,1755528651447,-336.32279509,0.00021369,2]
[380069917,1755528651457,-480.0,0.00021369,2]
[380069918,1755528651468,-583.38,0.00021369,2]
[380069919,1755528651479,-869.04,0.00021369,2]
[380069920,1755528651489,-27544.98138679,0.00021369,2]
[380069921,1755528651823,-768.53,0.0002,2]
[380069922,1755528651832,-41710.53881683,0.00020273,2]
[380069923,1755528652173,-2303.486696,0.00020273,2]
[380069925,1755529272967,353.00435388,0.00018551,2]
[380069926,1755529291942,678.491398,0.00018118,2]
[380069927,1755529333246,162.068809,0.00013699,2]
[380069928,1755529542127,-221.79782474,0.0001872,2]
[380069929,1755529542150,-1200.0,0.00018897,2]
[380069930,1755529542172,-1200.0,0.00018898,2]
[380069931,1755529542194,-300.0,0.00018898,2]
[380069932,1755529542215,-150.0,0.00018899,2]
[380069933,1755529542236,-1000.0,0.00018899,2]
[380069934,1755529542256,-1000.0,0.00018899,2]
[380069935,1755529542276,-1000.0,0.00018899,2]
[380069936,1755529542296,-1000.0,0.00018899,2]
[380069937,1755529542317,-1000.0,0.00018899,2]
[380069938,1755529542337,-372.20300181,0.000189,2]
[380069939,1755529542360,-1494.98900929,0.0001894,2]
[380069940,1755529542381,-317.49925833,0.00019038,2]
[380069941,1755529542404,-500.0,0.00019038,2]
[380069942,1755529542427,-500.0,0.00019038,2]
[380069943,1755529542450,-500.0,0.00019038,2]
[380069944,1755529542472,-500.0,0.00019038,2]
[380069945,1755529542495,-500.0,0.00019038,2]
[380069946,1755529542518,-500.0,0.00019038,2]
[380069947,1755529542540,-327.0612054,0.00019038,2]
[380069948,1755529542563,-500.0,0.00019038,2]
[380069949,1755529542585,-500.0,0.00019038,2]
[380069950,1755529542609,-500.0,0.00019038,2]
[380069951,1755529542631,-500.0,0.00019038,2]
[380069952,1755529542653,-500.0,0.00019038,2]
[380069953,1755529542675,-500.0,0.00019038,2]
[380069954,1755529542699,-500.0,0.00019038,2]
[380069955,1755529542723,-500.0,0.00019038,2]
[380069956,1755529542747,-500.0,0.00019038,2]
[380069957,1755529542773,-500.0,0.00019038,2]
[380069958,1755529542796,-500.0,0.00019038,2]
[380069959,1755529542819,-500.0,0.00019038,2]
[380069960,1755529542871,-500.0,0.00019038,2]
[380069961,1755529542902,-500.0,0.00019038,2]
[380069962,1755529542926,-500.0,0.00019038,2]
[380069963,1755529542948,-500.0,0.00019038,2]
[380069964,1755529542971,-500.0,0.00019038,2]
[380069965,1755529542993,-416.98187788,0.00019038,2]
[380069966,1755529543015,-500.0,0.00019038,2]
[380069967,1755529543038,-500.0,0.00019038,2]
[380069968,1755529543061,-500.0,0.00019038,2]
[380069969,1755529543082,-50000.0,0.00019039,2]
[380069970,1755529543104,-202.02482474,0.00019078,2]
[380069971,1755529543125,-248.22714703,0.00019177,2]
[380069972,1755529543145,-480.0,0.00019178,2]
[380069973,1755529543166,-480.0,0.00019178,2]
[380069974,1755529543188,-480.0,0.00019178,2]
[380069975,1755529543209,-319.5042743,0.00019178,2]
[380069976,1755529543229,-480.0,0.00019178,2]
[380069977,1755529543250,-480.0,0.00019178,2]
[380069978,1755529543270,-329.4921654,0.00019178,2]
[380069979,1755529543291,-480.0,0.00019178,2]
[380069980,1755529543312,-480.0,0.00019178,2]
[380069981,1755529543333,-480.0,0.00019178,2]
[380069982,1755529543353,-1158.87,0.00019178,2]
[380069983,1755529543374,-480.0,0.00019178,2]
[380069984,1755529543395,-243.26210436,0.00019178,2]
[380069985,1755529543416,-480.0,0.00019178,2]
[380069986,1755529543437,-480.0,0.00019178,2]
[380069987,1755529543458,-480.0,0.00019178,2]
[380069988,1755529543479,-523.92964513,0.00019178,2]
[380069989,1755529543500,-480.0,0.00019178,2]
[380069990,1755529543520,-480.0,0.00019178,2]
[380069991,1755529543540,-480.0,0.00019178,2]
[380069992,1755529543561,-616.43,0.00019178,2]
[380069993,1755529543581,-480.0,0.00019178,2]
[380069994,1755529543600,-480.0,0.00019178,2]
[380069995,1755529543621,-480.0,0.00019178,2]
[380069996,1755529543654,-488.40846653,0.00019178,2]
[380069997,1755529543675,-405.41925666,0.00019178,2]
[380069998,1755529543700,-480.0,0.00019178,2]
[380069999,1755529543721,-420.0,0.00019178,2]
[380070000,1755529543744,-480.0,0.00019178,2]
[380070001,1755529543767,-572.24,0.00019178,2]
[380070002,1755529543789,-500.0,0.00019178,2]
[380070003,1755529543810,-500.0,0.00019178,2]
[380070004,1755529543831,-500.0,0.00019178,2]
[380070005,1755529543853,-500.0,0.00019178,2]
[380070006,1755529543874,-500.0,0.00019178,2]
[380070007,1755529543899,-480.0,0.00019178,2]
[380070008,1755529543921,-565.46,0.00019178,2]
[380070009,1755529543942,-480.0,0.00019178,2]
[380070010,1755529543963,-480.0,0.00019178,2]
[380070011,1755529543984,-405.17369016,0.00019178,2]
[380070012,1755529544005,-480.0,0.00019178,2]
[380070013,1755529544027,-500.0,0.00019178,2]
[380070014,1755529544049,-612.17449588,0.00019178,2]
[380070015,1755529544071,-480.0,0.00019178,2]
[380070016,1755529544093,-625.8984158,0.00019178,2]
[380070017,1755529544115,-480.0,0.00019178,2]
[380070018,1755529544137,-480.0,0.00019178,2]
[380070019,1755529544159,-480.0,0.00019178,2]
[380070020,1755529544180,-480.0,0.00019178,2]
[380070021,1755529544201,-480.0,0.00019178,2]
[380070022,1755529544222,-480.0,0.00019178,2]
[380070023,1755529544244,-480.0,0.00019178,2]
[380070024,1755529544265,-480.0,0.00019178,2]
[380070025,1755529544288,-480.0,0.00019178,2]
[380070026,1755529544311,-650.46,0.00019178,2]
[380070027,1755529544332,-480.0,0.00019178,2]
[380070028,1755529544353,-480.0,0.00019178,2]
[380070029,1755529544376,-480.0,0.00019178,2]
[380070030,1755529544397,-749.88,0.00019178,2]
[380070031,1755529544417,-480.0,0.00019178,2]
[380070032,1755529544557,-683.02,0.00019178,2]
[380070033,1755529544579,-480.0,0.00019178,2]
[380070034,1755529544600,-502.89,0.00019178,2]
[380070035,1755529544621,-480.0,0.00019178,2]
[380070036,1755529544641,-586.85360079,0.00019178,2]
[380070037,1755529544661,-480.0,0.00019178,2]
[380070038,1755529544683,-480.0,0.00019178,2]
[380070039,1755529544710,-480.0,0.00019178,2]
[380070040,1755529544734,-480.0,0.00019178,2]
[380070041,1755529544755,-480.0,0.00019178,2]
[380070042,1755529544780,-1893.86,0.00019178,2]
[380070043,1755529544802,-58.63177515,0.00019178,2]
[380070044,1755529575063,152.0,0.00018551,2]
[380070045,1755529643091,-1013.33049499,0.00019177,2]
[380070046,1755529643111,-1200.0,0.00019177,2]
[380070047,1755529643132,-300.0,0.00019177,2]
[380070048,1755529643152,-421.36822485,0.00019178,2]
[380070049,1755529643172,-480.0,0.00019178,2]
[380070050,1755529643193,-480.0,0.00019178,2]
[380070051,1755529643213,-480.0,0.00019178,2]
[380070052,1755529643233,-480.0,0.00019178,2]
[380070053,1755529643255,-480.0,0.00019178,2]
[380070054,1755529643275,-480.0,0.00019178,2]
[380070055,1755529643295,-615.57,0.00019178,2]
[380070056,1755529643315,-480.0,0.00019178,2]
[380070057,1755529643335,-480.0,0.00019178,2]
[380070058,1755529643355,-809.12,0.00019178,2]
[380070059,1755529643376,-1643.23,0.00019178,2]
[380070060,1755529643396,-527.36,0.00019178,2]
[380070061,1755529643416,-480.0,0.00019178,2]
[380070062,1755529643437,-1367.54,0.00019178,2]
[380070063,1755529643458,-480.0,0.00019178,2]
[380070064,1755529643477,-1031.52,0.00019178,2]
[380070065,1755529643498,-486.99865741,0.00019178,2]
[380070066,1755529643517,-480.0,0.00019178,2]
[380070067,1755529643538,-480.0,0.00019178,2]
[380070068,1755529643558,-480.0,0.00019178,2]
[380070069,1755529643579,-2605.01,0.00019178,2]
[380070070,1755529643599,-480.0,0.00019178,2]
[380070071,1755529643620,-480.0,0.00019178,2]
[380070072,1755529643642,-480.0,0.00019178,2]
[380070073,1755529643669,-480.0,0.00019178,2]
[380070074,1755529643694,-480.0,0.00019178,2]
[380070075,1755529643714,-460.0,0.00019178,2]
[380070076,1755529643739,-480.0,0.00019178,2]
[380070077,1755529643761,-480.0,0.00019178,2]
[380070078,1755529643784,-1168.9,0.00019178,2]
[380070079,1755529643806,-480.0,0.00019178,2]
[380070080,1755529643826,-480.0,0.00019178,2]
[380070081,1755529643847,-480.0,0.00019178,2]
[380070082,1755529643867,-480.0,0.00019178,2]
[380070083,1755529643894,-525.47,0.00019178,2]
[380070084,1755529643950,-480.0,0.00019178,2]
[380070085,1755529643972,-480.0,0.00019178,2]
[380070086,1755529643993,-480.0,0.00019178,2]
[380070087,1755529644013,-483.9721258,0.00019178,2]
[380070088,1755529644036,-480.0,0.00019178,2]
[380070089,1755529644060,-1059.2,0.00019178,2]
[380070090,1755529644082,-489.58,0.00019178,2]
[380070091,1755529644103,-480.0,0.00019178,2]
[380070092,1755529644124,-2638.17,0.00019178,2]
[380070093,1755529644147,-480.0,0.00019178,2]
[380070094,1755529644168,-480.0,0.00019178,2]
[380070095,1755529644190,-480.0,0.00019178,2]
[380070096,1755529644213,-1042.83,0.00019178,2]
[380070097,1755529644240,-480.0,0.00019178,2]
[380070098,1755529644262,-480.0,0.00019178,2]
[380070099,1755529644284,-1814.95,0.00019178,2]
[380070100,1755529644304,-486.1856359,0.00019178,2]
[380070101,1755529644325,-718.64,0.00019178,2]
[380070102,1755529644345,-480.0,0.00019178,2]
[380070103,1755529644366,-480.0,0.00019178,2]
[380070104,1755529644388,-978.17,0.00019178,2]
[380070105,1755529644408,-480.0,0.00019178,2]
[380070106,1755529644428,-480.0,0.00019178,2]
[380070107,1755529644450,-480.0,0.00019178,2]
[380070108,1755529644471,-480.0,0.00019178,2]
[380070109,1755529644496,-480.0,0.00019178,2]
[380070110,1755529644517,-480.0,0.00019178,2]
[380070111,1755529644538,-595.23,0.00019178,2]
[380070112,1755529644560,-2031.69,0.00019178,2]
[380070113,1755529644581,-2118.23,0.00019178,2]
[380070114,1755529644602,-480.0,0.00019178,2]
[380070115,1755529644624,-480.0,0.00019178,2]
[380070116,1755529644761,-1215.94,0.00019178,2]
[380070117,1755529644781,-480.0,0.00019178,2]
[380070118,1755529644802,-500.0,0.00019178,2]
[380070119,1755529644824,-41346.27152724,0.00019178,2]
[380071739,1755529806181,165.5239725,0.00018176,2]
[380071809,1755529832875,-170.33979147,0.000189,2]
[380071810,1755529832886,-4560.97559988,0.0001898,2]
[380071913,1755529840699,-439.02440012,0.0001898,2]
[380071914,1755529840709,-150.0,0.00019172,2]
[380071915,1755529840719,-300.0,0.00019177,2]
[380071916,1755529840728,-1200.0,0.00019177,2]
[380071917,1755529840738,-500.0,0.00019177,2]
[380071919,1755529840747,-500.0,0.00019177,2]
[380071920,1755529840758,-317.49925833,0.00019177,2]
[380071922,1755529840767,-500.0,0.00019177,2]
[380071923,1755529840779,-500.0,0.00019177,2]
[380071924,1755529840790,-500.0,0.00019177,2]
[380071925,1755529840799,-500.0,0.00019177,2]
[380071926,1755529840808,-377.0612054,0.00019177,2]
[380071927,1755529840818,-500.0,0.00019177,2]
[380071928,1755529840828,-500.0,0.00019177,2]
[380071929,1755529840837,-500.0,0.00019177,2]
[380071930,1755529840846,-500.0,0.00019177,2]
[380071931,1755529840857,-500.0,0.00019177,2]
[380071932,1755529840866,-500.0,0.00019177,2]
[380071933,1755529840875,-500.0,0.00019177,2]
[380071934,1755529840885,-500.0,0.00019177,2]
[380071935,1755529840894,-500.0,0.00019177,2]
[380071936,1755529840904,-500.0,0.00019177,2]
[380071937,1755529840913,-500.0,0.00019177,2]
[380071938,1755529840922,-500.0,0.00019177,2]
[380071939,1755529840932,-500.0,0.00019177,2]
[380071940,1755529840941,-500.0,0.00019177,2]
[380071941,1755529840950,-500.0,0.00019177,2]
[380071942,1755529840960,-500.0,0.00019177,2]
[380071943,1755529840969,-500.0,0.00019177,2]
[380071945,1755529840978,-466.98187788,0.00019177,2]
[380071946,1755529840987,-500.0,0.00019177,2]
[380071947,1755529840997,-480.0,0.00019178,2]
[380071948,1755529841006,-480.0,0.00019178,2]
[380071949,1755529841017,-806.2,0.00019178,2]
[380071950,1755529841028,-480.0,0.00019178,2]
[380071951,1755529841038,-480.0,0.00019178,2]
[380071952,1755529841047,-480.0,0.00019178,2]
[380071953,1755529841056,-480.0,0.00019178,2]
[380071954,1755529841066,-209.54776766,0.00019178,2]
[380071955,1755529841075,-480.0,0.00019178,2]
[380071956,1755529841084,-489.18,0.00019178,2]
[380071957,1755529841093,-483.89343981,0.00019178,2]
[380071958,1755529841103,-480.0,0.00019178,2]
[380071959,1755529841112,-480.0,0.00019178,2]
[380071960,1755529841122,-480.0,0.00019178,2]
[380071961,1755529841132,-480.0,0.00019178,2]
[380071962,1755529841144,-480.0,0.00019178,2]
[380071963,1755529841163,-480.0,0.00019178,2]
[380071964,1755529841187,-480.0,0.00019178,2]
[380071965,1755529841196,-480.0,0.00019178,2]
[380071966,1755529841206,-480.0,0.00019178,2]
[380071967,1755529841216,-480.0,0.00019178,2]
[380071968,1755529841225,-1120.2,0.00019178,2]
[380071969,1755529841235,-480.0,0.00019178,2]
[380071970,1755529841244,-480.0,0.00019178,2]
[380071971,1755529841254,-480.0,0.00019178,2]
[380071972,1755529841263,-480.0,0.00019178,2]
[380071973,1755529841272,-480.0,0.00019178,2]
[380071974,1755529841281,-480.0,0.00019178,2]
[380071975,1755529841290,-480.0,0.00019178,2]
[380071976,1755529841299,-480.0,0.00019178,2]
[380071977,1755529841313,-399.83,0.00019178,2]
[380071978,1755529841322,-480.0,0.00019178,2]
[380071979,1755529841331,-480.0,0.00019178,2]
[380071980,1755529841340,-480.0,0.00019178,2]
[380071981,1755529841349,-480.0,0.00019178,2]
[380071982,1755529841358,-480.0,0.00019178,2]
[380071983,1755529841367,-480.0,0.00019178,2]
[380071984,1755529841376,-1015.07,0.00019178,2]
[380071985,1755529841385,-480.0,0.00019178,2]
[380071986,1755529841395,-480.0,0.00019178,2]
[380071987,1755529841404,-480.0,0.00019178,2]
[380071988,1755529841412,-480.0,0.00019178,2]
[380071989,1755529841421,-480.0,0.00019178,2]
[380071990,1755529841430,-688.69,0.00019178,2]
[380071991,1755529841439,-480.0,0.00019178,2]
[380071992,1755529841448,-591.32,0.00019178,2]
[380071993,1755529841457,-549.21,0.00019178,2]
[380071994,1755529841466,-480.0,0.00019178,2]
[380071995,1755529841475,-480.0,0.00019178,2]
[380071996,1755529841485,-480.0,0.00019178,2]
[380071997,1755529841494,-480.0,0.00019178,2]
[380071998,1755529841503,-480.19,0.00019178,2]
[380071999,1755529841513,-480.0,0.00019178,2]
[380072000,1755529841522,-483.73060781,0.00019178,2]
[380072001,1755529841531,-480.0,0.00019178,2]
[380072002,1755529841540,-480.0,0.00019178,2]
[380072003,1755529841549,-480.0,0.00019178,2]
[380072004,1755529841558,-480.0,0.00019178,2]
[380072005,1755529841567,-480.0,0.00019178,2]
[380072006,1755529841576,-480.0,0.00019178,2]
[380072007,1755529841585,-979.95,0.00019178,2]
[380072008,1755529841594,-480.0,0.00019178,2]
[380072009,1755529841603,-480.0,0.00019178,2]
[380072010,1755529841612,-2066.95,0.00019178,2]
[380072011,1755529841620,-460.60353803,0.00019178,2]
[380072012,1755529841630,-480.0,0.00019178,2]
[380072013,1755529841639,-480.0,0.00019178,2]
[380072014,1755529841648,-462.1223733,0.00019178,2]
[380072015,1755529841657,-382.30894942,0.00019178,2]
[380072016,1755529841666,-480.0,0.00019178,2]
[380072017,1755529841675,-640.44,0.00019178,2]
[380072018,1755529841683,-464.31793976,0.00019178,2]
[380072019,1755529841693,-626.13,0.00019178,2]
[380072020,1755529841702,-465.68881957,0.00019178,2]
[380072021,1755529841712,-480.0,0.00019178,2]
[380072022,1755529841721,-492.65479457,0.00019178,2]
[380072023,1755529841730,-480.0,0.00019178,2]
[380072024,1755529841740,-1821.67,0.00019178,2]
[380072025,1755529841749,-480.0,0.00019178,2]
[380072026,1755529841759,-480.97066547,0.00019178,2]
[380072027,1755529841768,-486.3501687,0.00019178,2]
[380072028,1755529841781,-603.05,0.00019178,2]
[380072029,1755529841791,-480.0,0.00019178,2]
[380072030,1755529841801,-820.65,0.00019178,2]
[380072031,1755529841811,-480.0,0.00019178,2]
[380072032,1755529841820,-464.41304279,0.00019178,2]
[380072033,1755529841830,-484.32773461,0.00019178,2]
[380072034,1755529841839,-480.0,0.00019178,2]
[380072035,1755529841849,-480.0,0.00019178,2]
[380072036,1755529841860,-480.0,0.00019178,2]
[380072037,1755529841870,-503.57,0.00019178,2]
[380072039,1755529841880,-1386.59,0.00019178,2]
[380072040,1755529841889,-480.0,0.00019178,2]
[380072041,1755529841898,-480.0,0.00019178,2]
[380072042,1755529841908,-1574.76,0.00019178,2]
[380072043,1755529841918,-2658.54,0.00019178,2]
[380072044,1755529841927,-480.0,0.00019178,2]
[380072045,1755529841938,-2528.25,0.00019178,2]
[380072047,1755529841947,-480.0,0.00019178,2]
[380072048,1755529841956,-480.0,0.00019178,2]
[380072049,1755529841965,-2120.48,0.00019178,2]
[380072050,1755529841975,-480.0,0.00019178,2]
[380072051,1755529841984,-1046.87,0.00019178,2]
[380072052,1755529841993,-480.0,0.00019178,2]
[380072053,1755529842002,-480.0,0.00019178,2]
[380072054,1755529842012,-480.0,0.00019178,2]
[380072055,1755529842022,-465.49929012,0.00019178,2]
[380072056,1755529842031,-480.0,0.00019178,2]
[380072057,1755529842041,-1043.7,0.00019178,2]
[380072058,1755529842051,-480.0,0.00019178,2]
[380072059,1755529842060,-480.0,0.00019178,2]
[380072060,1755529842070,-480.0,0.00019178,2]
[380072061,1755529842079,-1036.94859222,0.00019427,2]
[380072062,1755529842089,-615.63,0.00019442,3]
[380072063,1755529842098,-307.81,0.00019442,3]
[380072064,1755529842108,-153.91,0.00019442,3]
[380072065,1755529842117,-461.74,0.00019442,3]
[380072066,1755529842127,-480.0,0.0001945,2]
[380072067,1755529842136,-480.0,0.0001945,2]
[380072069,1755529842145,-480.0,0.0001945,2]
[380072070,1755529842155,-480.0,0.0001945,2]
[380072071,1755529842165,-480.0,0.0001945,2]
[380072072,1755529842175,-480.0,0.0001945,2]
[380072073,1755529842184,-609.72,0.0001945,2]
[380072074,1755529842193,-480.0,0.0001945,2]
[380072075,1755529842203,-480.0,0.0001945,2]
[380072076,1755529842212,-480.0,0.0001945,2]
[380072077,1755529842222,-480.0,0.0001945,2]
[380072078,1755529842231,-480.0,0.0001945,2]
[380072079,1755529842240,-480.0,0.0001945,2]
[380072080,1755529842249,-480.0,0.0001945,2]
[380072081,1755529842259,-480.0,0.0001945,2]
[380072082,1755529842268,-503.8,0.0001945,2]
[380072083,1755529842277,-173.75900292,0.00019451,2]
[380072084,1755529842287,-503.74403087,0.00019452,2]
[380072085,1755529842296,-480.0,0.00019452,2]
[380072086,1755529842306,-233.82416505,0.00019452,2]
[380072087,1755529842315,-650.46,0.00019452,2]
[380072088,1755529842324,-500.30211488,0.00019452,2]
[380072089,1755529842333,-683.02,0.00019452,2]
[380072090,1755529842343,-480.0,0.00019452,2]
[380072092,1755529842352,-514.84,0.00019452,2]
[380072093,1755529842361,-480.0,0.00019452,2]
[380072094,1755529842371,-325.51151876,0.00019452,2]
[380072095,1755529842382,-480.0,0.00019452,2]
[380072096,1755529842391,-432.72,0.00019452,2]
[380072097,1755529842400,-489.6065327,0.00019452,2]
[380072098,1755529842410,-480.0,0.00019452,2]
[380072099,1755529842420,-480.0,0.00019452,2]
[380072100,1755529842429,-480.0,0.00019452,2]
[380072101,1755529842438,-480.0,0.00019452,2]
[380072102,1755529842447,-480.0,0.00019452,2]
[380072103,1755529842457,-480.0,0.00019452,2]
[380072104,1755529842466,-1215.94,0.00019452,2]
[380072105,1755529842476,-480.0,0.00019452,2]
[380072106,1755529842485,-480.0,0.00019452,2]
[380072107,1755529842494,-806.2,0.00019452,2]
[380072108,1755529842504,-480.0,0.00019452,2]
[380072109,1755529842513,-480.0,0.00019452,2]
[380072110,1755529842522,-480.0,0.00019452,2]
[380072111,1755529842532,-480.0,0.00019452,2]
[380072112,1755529842541,-489.18,0.00019452,2]
[380072113,1755529842551,-480.0,0.00019452,2]
[380072114,1755529842560,-480.0,0.00019452,2]
[380072115,1755529842569,-480.0,0.00019452,2]
[380072116,1755529842578,-480.0,0.00019452,2]
[380072117,1755529842587,-480.0,0.00019452,2]
[380072118,1755529842596,-480.0,0.00019452,2]
[380072119,1755529842606,-480.0,0.00019452,2]
[380072120,1755529842616,-1120.2,0.00019452,2]
[380072121,1755529842625,-480.0,0.00019452,2]
[380072122,1755529842636,-557.72957526,0.00019452,2]
[380072123,1755529842645,-480.0,0.00019452,2]
[380072124,1755529842655,-480.0,0.00019452,2]
[380072125,1755529842665,-480.0,0.00019452,2]
[380072126,1755529842674,-480.0,0.00019452,2]
[380072127,1755529842684,-490.38620051,0.00019452,2]
[380072128,1755529842694,-480.0,0.00019452,2]
[380072129,1755529842703,-480.0,0.00019452,2]
[380072130,1755529842712,-480.0,0.00019452,2]
[380072131,1755529842722,-480.0,0.00019452,2]
[380072132,1755529842731,-480.0,0.00019452,2]
[380072133,1755529842741,-323.45541721,0.00019452,2]
[380072144,1755529843596,-156.54458279,0.00019452,2]
[380072145,1755529843606,-1015.07,0.00019452,2]
[380072146,1755529843615,-591.2979513,0.00019452,2]
[380072147,1755529843625,-480.0,0.00019452,2]
[380072148,1755529843636,-480.0,0.00019452,2]
[380072150,1755529843645,-480.0,0.00019452,2]
[380072151,1755529843654,-480.0,0.00019452,2]
[380072152,1755529843664,-688.69,0.00019452,2]
[380072153,1755529843673,-591.32,0.00019452,2]
[380072154,1755529843682,-549.21,0.00019452,2]
[380072155,1755529843692,-480.0,0.00019452,2]
[380072156,1755529843701,-480.0,0.00019452,2]
[380072157,1755529843710,-480.0,0.00019452,2]
[380072158,1755529843719,-480.19,0.00019452,2]
[380072159,1755529843728,-480.0,0.00019452,2]
[380072160,1755529843737,-480.0,0.00019452,2]
[380072161,1755529843747,-480.0,0.00019452,2]
[380072162,1755529843756,-485.71191195,0.00019452,2]
[380072163,1755529843765,-480.0,0.00019452,2]
[380072164,1755529843775,-480.0,0.00019452,2]
[380072165,1755529843787,-234.97271951,0.00019452,2]
[380072166,1755529843796,-979.95,0.00019452,2]
[380072167,1755529843806,-480.0,0.00019452,2]
[380072168,1755529843815,-2066.95,0.00019452,2]
[380072169,1755529843826,-480.0,0.00019452,2]
[380072170,1755529843835,-640.44,0.00019452,2]
[380072171,1755529843845,-480.0,0.00019452,2]
[380072173,1755529843858,-626.13,0.00019452,2]
[380072175,1755529843867,-474.82028875,0.00019452,2]
[380072176,1755529843877,-1821.67,0.00019452,2]
[380072177,1755529843901,-452.79803107,0.00019452,2]
[380072179,1755529843924,-603.05,0.00019452,2]
[380072180,1755529843934,-820.65,0.00019452,2]
[380072181,1755529843944,-480.0,0.00019452,2]
[380072182,1755529843954,-480.0,0.00019452,2]
[380072183,1755529843963,-503.57,0.00019452,2]
[380072184,1755529843974,-1386.59,0.00019452,2]
[380072185,1755529843983,-1574.76,0.00019452,2]
[380072186,1755529843993,-2658.54,0.00019452,2]
[380072187,1755529844002,-480.0,0.00019452,2]
[380072188,1755529844011,-480.0,0.00019452,2]
[380072189,1755529844021,-2528.25,0.00019452,2]
[380072190,1755529844030,-480.0,0.00019452,2]
[380072191,1755529844040,-2120.48,0.00019452,2]
[380072192,1755529844049,-480.0,0.00019452,2]
[380072193,1755529844059,-480.0,0.00019452,2]
[380072194,1755529844069,-388.73,0.00019452,2]
[380072195,1755529844079,-480.0,0.00019452,2]
[380072196,1755529844089,-1043.7,0.00019452,2]
[380072197,1755529844099,-480.0,0.00019452,2]
[380072198,1755529844108,-480.0,0.00019452,2]
[380072199,1755529844118,-227.20005765,0.00019473,2]
[380072200,1755529844127,-500.0,0.00019473,2]
[380072202,1755529844138,-500.0,0.00019473,2]
[380072203,1755529844147,-211.74076198,0.00019473,2]
[380072204,1755529844156,-500.0,0.00019473,2]
[380072205,1755529844166,-1231.26,0.00019714,3]
[380072206,1755529844175,-1382.31460881,0.00019716,3]
[380072208,1755529844501,-480.0,0.00019178,2]
[380072209,1755529844511,-100.575816,0.00019178,2]
[380072213,1755529845185,-477.684184,0.00019178,2]